bitfinex/quotes_BTCUSD_20260117
["timestamp","ask_amount","ask_price","bid_price","bid_amount"]
[1768687380561,0.01049769,95259.0,95255.0,0.01049813]
[1768687381217,0.01049769,95259.0,95256.0,0.01049802]
[1768687381823,0.06298654,95259.0,95255.0,0.01049813]
[1768687382026,0.0104978,95258.0,95255.0,0.01049813]
[1768687383201,0.01049769,95259.0,95255.0,0.01049813]
[1768687385559,0.01049769,95259.0,95256.0,0.01049802]
[1768687388243,0.01049769,95259.0,95255.0,0.01049813]
[1768687390064,0.01049769,95259.0,95256.0,0.01049802]
[1768687390357,0.01049747,95261.0,95257.0,0.01049791]
[1768687391617,0.01049736,95262.0,95257.0,0.01049791]
[1768687391824,0.01049736,95262.0,95257.0,0.06298694]
[1768687392206,0.01049736,95262.0,95258.0,0.0104978]
[1768687394720,0.01049747,95261.0,95257.0,0.01049791]
[1768687396099,0.01049747,95261.0,95257.0,0.06298742]
[1768687396731,0.01011837,95261.0,95257.0,0.06298742]
[1768687398092,0.00464108,95261.0,95257.0,0.01049791]
[1768687401289,0.00459108,95261.0,95257.0,0.01049791]
[1768687409626,0.057079,95261.0,95255.0,0.01049813]
[1768687410228,0.01049758,95260.0,95257.0,0.01049791]
[1768687411488,0.06298554,95260.0,95256.0,0.01049802]
[1768687411716,0.01049769,95259.0,95255.0,0.01049813]
[1768687411924,0.0104978,95258.0,95255.0,0.01049813]
[1768687412521,0.0104978,95258.0,95254.0,0.01049824]
[1768687413369,0.01049791,95257.0,95253.0,0.01049835]
[1768687413712,0.01049802,95256.0,95253.0,0.01049835]
[1768687419434,0.01049802,95256.0,95252.0,0.01049846]
[1768687422241,0.06298907,95255.0,95250.0,0.13407278]
[1768687422442,0.01049813,95255.0,95251.0,0.01049857]
[1768687423703,0.01049813,95255.0,95251.0,0.0629914]
[1768687425376,0.01049813,95255.0,95250.0,0.08157947]
[1768687425377,0.01049824,95254.0,95250.0,0.08157947]
[1768687425851,0.06298948,95254.0,95250.0,0.08157947]
[1768687427113,0.01049824,95254.0,95250.0,0.08157947]
[1768687428175,0.01049824,95254.0,95251.0,0.01049857]
[1768687428377,0.01049813,95255.0,95251.0,0.01049857]
[1768687428584,0.06298885,95255.0,95251.0,0.01049857]
[1768687428834,0.01049813,95255.0,95251.0,0.0104532]
[1768687429026,0.01049824,95254.0,95251.0,0.0104532]
[1768687429185,0.01049824,95254.0,95251.0,0.01040783]
[1768687431267,0.06298891,95255.0,95251.0,0.01040783]
[1768687432245,0.01049824,95254.0,95251.0,0.01040783]
[1768687432801,0.06298949,95254.0,95250.0,0.01049868]
[1768687433209,0.01049813,95255.0,95251.0,0.01049857]
[1768687433353,0.01049813,95255.0,95252.0,0.01049846]
[1768687436007,0.01049813,95255.0,95252.0,0.01040772]
[1768687442022,0.01049813,95255.0,95251.0,0.01049857]
[1768687442963,0.01049813,95255.0,95252.0,0.01049846]
[1768687444241,0.01049813,95255.0,95251.0,0.01049857]
[1768687444658,0.06298841,95256.0,95252.0,0.01049846]
[1768687445067,0.06299148,95251.0,95248.0,0.0001576]
[1768687445278,0.01049835,95253.0,95243.0,0.01049945]
[1768687445279,0.00761155,95253.0,95243.0,0.01049945]
[1768687445486,0.01049879,95249.0,95244.0,0.05249629]
[1768687446092,0.01049879,95249.0,95245.0,0.01049923]
[1768687446297,0.01049879,95249.0,95245.0,0.01056376]
[1768687446703,0.01049879,95249.0,95245.0,0.0630599]
[1768687446911,0.01049879,95249.0,95246.0,0.01049912]
[1768687447144,0.01049879,95249.0,95246.0,0.01045375]
[1768687449554,0.06299233,95250.0,95246.0,0.01045375]
[1768687449927,0.01049879,95249.0,95246.0,0.01040839]
[1768687450163,0.01049879,95249.0,95242.0,0.01049956]
[1768687450358,0.01049879,95249.0,95242.0,0.06299728]
[1768687450571,0.01049846,95252.0,95247.0,0.05249498]
[1768687451220,0.01049846,95252.0,95244.0,0.01049934]
[1768687451221,0.01049846,95252.0,95248.0,0.05249441]
[1768687451447,0.01049824,95254.0,95250.0,0.01049868]
[1768687451641,0.01049824,95254.0,95250.0,0.0105459]
[1768687452200,0.01049835,95253.0,95250.0,0.0105459]
[1768687452948,0.01049824,95254.0,95250.0,0.0105459]
[1768687453389,0.01049824,95254.0,95250.0,0.0630393]
[1768687453784,0.01049824,95254.0,95251.0,0.01049857]
[1768687454125,0.01049758,95260.0,95255.0,0.01049813]
[1768687454504,0.01049758,95260.0,95254.0,0.01049824]
[1768687454505,0.0104978,95258.0,95254.0,0.01049824]
[1768687455135,0.06298686,95258.0,95254.0,0.01049824]
[1768687455311,0.0104978,95258.0,95254.0,0.01049824]
[1768687455952,0.01049791,95257.0,95253.0,0.01049835]
[1768687456306,0.01049791,95257.0,95254.0,0.01049824]
[1768687456506,0.0104978,95258.0,95254.0,0.01049824]
[1768687458104,0.13773725,95263.0,95258.0,0.0104978]
[1768687458334,0.01049736,95262.0,95258.0,0.0104978]
[1768687458940,0.06298426,95262.0,95258.0,0.0104978]
[1768687459345,0.01049736,95262.0,95258.0,0.06298681]
[1768687459555,0.06298427,95262.0,95258.0,0.0104978]
[1768687460399,0.01049736,95262.0,95258.0,0.0104978]
[1768687463187,0.01049736,95262.0,95258.0,0.06298676]
[1768687466035,0.01049736,95262.0,95258.0,0.0104978]
[1768687475338,0.01049736,95262.0,95259.0,0.01049769]
[1768687476018,0.0629842,95262.0,95258.0,0.0104978]
[1768687476191,0.01049747,95261.0,95255.0,0.06298872]
[1768687476393,0.01049758,95260.0,95256.0,0.01049802]
[1768687476576,0.01040682,95260.0,95256.0,0.01049802]
[1768687478511,0.06289477,95260.0,95256.0,0.01049802]
[1768687478907,0.01040682,95260.0,95256.0,0.01049802]
[1768687479107,0.01031606,95260.0,95256.0,0.01049802]
[1768687479531,0.0628041,95260.0,95256.0,0.01049802]
[1768687480095,5.4e-07,95261.0,95257.0,0.05248931]
[1768687480297,0.01049801,95261.0,95256.0,0.13154511]
[1768687480903,0.06298545,95261.0,95256.0,0.07905511]
[1768687484068,0.01049758,95260.0,95256.0,0.07905511]
[1768687486397,0.01049758,95260.0,95257.0,0.01049791]
[1768687492730,0.01049758,95260.0,95256.0,0.07905511]
[1768687493682,0.06298552,95260.0,95256.0,0.01049802]
[1768687493888,0.01049758,95260.0,95256.0,0.01049802]
[1768687497828,0.01049758,95260.0,95256.0,0.06298812]
[1768687498533,0.01049758,95260.0,95256.0,0.01049802]
[1768687499505,0.01049758,95260.0,95256.0,0.06298814]
[1768687499796,0.01049758,95260.0,95256.0,0.01049802]
[1768687502512,0.01049758,95260.0,95257.0,0.01049791]
[1768687502717,0.01049725,95263.0,95259.0,0.06802468]
[1768687502940,0.12724,95268.0,95260.0,0.07852226]
[1768687502941,0.05248625,95265.0,95260.0,0.07852226]
[1768687503144,0.05248625,95265.0,95256.0,0.06298793]
[1768687503145,0.12724,95270.0,95265.0,0.01049703]
[1768687503347,0.13773648,95270.0,95265.0,0.01045166]
[1768687503519,0.06297902,95270.0,95265.0,0.01045166]
[1768687503757,0.01049648,95270.0,95265.0,0.06293681]
[1768687503973,0.01049659,95269.0,95266.0,0.01049692]
[1768687504399,0.01049648,95270.0,95266.0,0.01049692]
[1768687505478,0.01049637,95271.0,95267.0,0.01049681]
[1768687505696,0.0001576,95272.0,95268.0,0.0104967]
[1768687505908,0.01065386,95272.0,95268.0,0.0104967]
[1768687507302,0.01065386,95272.0,95269.0,0.01049659]
[1768687511642,0.01065386,95272.0,95268.0,0.0104967]
[1768687513353,0.01065386,95272.0,95269.0,0.01049659]
[1768687513551,0.01056992,95272.0,95269.0,0.01049659]
[1768687513757,0.01035309,95272.0,95269.0,0.01049659]
[1768687513950,0.01035309,95272.0,95268.0,0.0104967]
[1768687518100,0.01049637,95271.0,95268.0,0.0104967]
[1768687519513,0.0629784,95271.0,95267.0,0.01049681]
[1768687521005,0.01049648,95270.0,95267.0,0.01049681]
[1768687522094,0.01049637,95271.0,95267.0,0.06298074]
[1768687522526,0.01035309,95272.0,95269.0,0.01049659]
[1768687522699,0.01049637,95271.0,95268.0,0.0104967]
[1768687524487,0.01049615,95273.0,95269.0,0.01049659]
[1768687528853,0.01049615,95273.0,95268.0,0.0104967]
[1768687528854,0.01049626,95272.0,95268.0,0.0104967]
[1768687529927,0.06297774,95272.0,95268.0,0.0104967]
[1768687530583,0.01049637,95271.0,95267.0,0.01049681]
[1768687531415,0.06297824,95271.0,95267.0,0.01049681]
[1768687532368,0.01049659,95269.0,95264.0,0.01049714]
[1768687533151,0.0104967,95268.0,95264.0,0.01049714]
[1768687533353,0.0104967,95268.0,95265.0,0.01049703]
[1768687535465,0.01049659,95269.0,95266.0,0.01049692]
[1768687546705,0.06297825,95271.0,95266.0,0.01049692]
[1768687549993,0.01049659,95269.0,95266.0,0.01049692]
[1768687557981,0.06297839,95271.0,95266.0,0.01049692]
[1768687559119,0.06297907,95270.0,95266.0,0.01049692]
[1768687559322,0.01049659,95269.0,95266.0,0.01049692]
[1768687560303,0.01049648,95270.0,95266.0,0.01049692]
[1768687564101,0.0104967,95268.0,95264.0,0.01049714]
[1768687564365,0.01049681,95267.0,95264.0,0.01049714]
[1768687564550,0.01049736,95262.0,95258.0,0.0104978]
[1768687565134,0.01049714,95264.0,95259.0,0.01049769]
[1768687565931,0.01049714,95264.0,95261.0,0.01049747]
[1768687567971,0.01049703,95265.0,95261.0,0.01049747]
[1768687569978,0.06298225,95265.0,95261.0,0.01049747]
[1768687570795,0.01049714,95264.0,95261.0,0.01049747]
[1768687574551,0.01049714,95264.0,95260.0,0.01049758]
[1768687575784,0.06298288,95264.0,95260.0,0.01049758]
[1768687576750,0.01049725,95263.0,95260.0,0.01049758]
[1768687577603,0.01049725,95263.0,95259.0,0.01049769]
[1768687578009,0.06298359,95263.0,95259.0,0.01049769]
[1768687578215,0.01049736,95262.0,95259.0,0.01049769]
[1768687581084,0.07293903,95274.0,95262.0,0.01049736]
[1768687581286,0.05248418,95267.0,95262.0,0.01049736]
[1768687581690,0.05248367,95268.0,95262.0,0.06298412]
[1768687582258,0.01049692,95266.0,95262.0,0.06298412]
[1768687583449,0.01049692,95266.0,95263.0,0.01049725]
[1768687584101,0.05248367,95268.0,95263.0,0.01049725]
[1768687584102,0.01049659,95269.0,95265.0,0.01049703]
[1768687587719,0.01049637,95271.0,95266.0,0.01049692]
[1768687587927,0.01049648,95270.0,95266.0,0.01049692]
[1768687588310,0.06297891,95270.0,95266.0,0.01049692]
[1768687588770,0.01049626,95272.0,95268.0,0.0104967]
[1768687589607,0.01049637,95271.0,95268.0,0.0104967]
[1768687590226,0.01049626,95272.0,95268.0,0.0104967]
[1768687602278,0.01049626,95272.0,95268.0,0.06298012]
[1768687606070,0.01049626,95272.0,95269.0,0.01049659]
[1768687610195,0.01049626,95272.0,95267.0,0.01049681]
[1768687610396,0.01049626,95272.0,95268.0,0.0104967]
[1768687611354,0.01049637,95271.0,95268.0,0.0104967]
[1768687620322,0.01049637,95271.0,95267.0,0.01049681]
[1768687621838,0.01049637,95271.0,95267.0,0.0629808]
[1768687622430,0.01049637,95271.0,95267.0,0.01049681]
[1768687622794,0.01049648,95270.0,95267.0,0.01049681]
[1768687623401,0.01049626,95272.0,95268.0,0.0104967]
[1768687623627,0.01049626,95272.0,95268.0,0.08435578]
[1768687623824,0.06297764,95272.0,95268.0,0.08435578]
[1768687624707,0.01049626,95272.0,95268.0,0.09485248]
[1768687625150,0.01049626,95272.0,95268.0,0.0104967]
[1768687627182,0.01049626,95272.0,95269.0,0.01049659]
[1768687629151,0.01049626,95272.0,95267.0,0.01049681]
[1768687629707,0.01049626,95272.0,95268.0,0.0104967]
[1768687631285,0.01049626,95272.0,95269.0,0.01049659]
[1768687631514,0.01049626,95272.0,95268.0,0.0104967]
[1768687631715,0.01049615,95273.0,95269.0,0.01049659]
[1768687631916,0.06297702,95273.0,95269.0,0.01049659]
[1768687632503,0.01049615,95273.0,95267.0,0.01049681]
[1768687632704,0.01049615,95273.0,95268.0,0.06298018]
[1768687633557,0.01049626,95272.0,95268.0,0.0104967]
[1768687633810,0.01049626,95272.0,95269.0,0.01049659]
[1768687634936,0.01049593,95275.0,95270.0,0.01049648]
[1768687635143,0.01049604,95274.0,95270.0,0.01049648]
[1768687636067,0.06297626,95274.0,95270.0,0.01049648]
[1768687636315,0.01049615,95273.0,95270.0,0.01049648]
[1768687636790,0.01049626,95272.0,95269.0,0.01049659]
[1768687639579,0.01049615,95273.0,95266.0,0.01049692]
[1768687640228,0.01049615,95273.0,95269.0,0.05248285]
[1768687641392,0.01049615,95273.0,95269.0,0.06297944]
[1768687642995,0.01049615,95273.0,95269.0,0.01049659]
[1768687646103,0.01049615,95273.0,95269.0,0.06297952]
[1768687646505,0.01049615,95273.0,95269.0,0.01049659]
[1768687647335,0.01049615,95273.0,95269.0,0.06297951]
[1768687649548,0.01049615,95273.0,95269.0,0.01049659]
[1768687649882,0.06297696,95273.0,95269.0,0.01049659]
[1768687650875,0.01049615,95273.0,95269.0,0.01045121]
[1768687651235,0.01049615,95273.0,95263.0,0.2099436]
[1768687651236,0.01049714,95264.0,95260.0,0.01049758]
[1768687651474,0.01049659,95269.0,95260.0,0.01049758]
[1768687651475,0.01049692,95266.0,95261.0,0.01030798]
[1768687651676,0.01049747,95261.0,95258.0,0.0104978]
[1768687651886,0.01049769,95259.0,95256.0,0.12724]
[1768687652092,0.01049736,95262.0,95256.0,0.12724]
[1768687652093,0.08423759,95260.0,95257.0,0.05248946]
[1768687652261,0.01049736,95262.0,95258.0,0.0104978]
[1768687653201,0.09473484,95263.0,95259.0,0.01049769]
[1768687653352,0.09473484,95263.0,95259.0,0.01045233]
[1768687656666,0.01049736,95262.0,95258.0,0.01045243]
[1768687659819,0.01049736,95262.0,95257.0,0.06298737]
[1768687659820,0.01049747,95261.0,95257.0,0.01049791]
[1768687660773,0.01049747,95261.0,95257.0,0.01030826]
[1768687661374,0.01049736,95262.0,95258.0,0.0104978]
[1768687661541,0.01049736,95262.0,95258.0,0.06298672]
[1768687661949,0.01049736,95262.0,95259.0,0.01049769]
[1768687664461,0.01049747,95261.0,95258.0,0.01011862]
[1768687664635,0.01049736,95262.0,95258.0,0.01011862]
[1768687664835,0.06298434,95262.0,95258.0,0.01011862]
[1768687665003,0.01049736,95262.0,95258.0,0.01011862]
[1768687666309,0.01049736,95262.0,95258.0,0.06260761]
[1768687670891,0.06344487,95266.0,95260.0,0.01049758]
[1768687671112,0.01049714,95264.0,95261.0,0.01049747]
[1768687671310,0.15241469,95266.0,95261.0,0.01049747]
[1768687671686,0.09992968,95266.0,95262.0,0.01049736]
[1768687671883,0.09980617,95266.0,95262.0,0.01049736]
[1768687672471,0.08930925,95266.0,95263.0,0.01049725]
[1768687675670,0.09980617,95266.0,95262.0,0.01049736]
[1768687677898,0.09980617,95266.0,95262.0,0.010452]
[1768687678655,0.1522911,95266.0,95262.0,0.010452]
[1768687679601,0.01049703,95265.0,95261.0,0.01049747]
[1768687679991,0.01049703,95265.0,95261.0,0.01045211]
[1768687680597,0.0629822,95265.0,95261.0,0.01040675]
[1768687680783,0.01049703,95265.0,95261.0,0.01040675]
[1768687680982,0.01049725,95263.0,95259.0,0.01049769]
[1768687681301,0.01049747,95261.0,95257.0,0.01049791]
[1768687681510,0.05869864,95262.0,95257.0,0.01049791]
[1768687682254,0.01049747,95261.0,95257.0,0.01049791]
[1768687683199,0.01049758,95260.0,95257.0,0.01049791]
[1768687683446,0.00621134,95262.0,95258.0,0.0104978]
[1768687683848,0.00621134,95262.0,95258.0,0.06298674]
[1768687684470,0.01049747,95261.0,95258.0,0.00838567]
[1768687684672,0.01049747,95261.0,95257.0,0.08398263]
[1768687685302,0.01049747,95261.0,95257.0,0.03149313]
[1768687686375,0.01049747,95261.0,95258.0,0.0104978]
[1768687686628,0.01049747,95261.0,95257.0,0.04199104]
[1768687688038,0.01049758,95260.0,95257.0,0.04199104]
[1768687691642,0.06298496,95261.0,95257.0,0.04199104]
[1768687692208,0.01049758,95260.0,95257.0,0.04199104]
[1768687692852,0.01049758,95260.0,95257.0,0.03149313]
[1768687693737,0.06298554,95260.0,95257.0,0.03149313]
[1768687693957,0.01049758,95260.0,95257.0,0.03149313]
[1768687694166,0.06298551,95260.0,95257.0,0.03149313]
[1768687694409,0.06298552,95260.0,95257.0,0.03149313]
[1768687694917,0.01049758,95260.0,95257.0,0.03149313]
[1768687695540,0.01049758,95260.0,95257.0,0.04199104]
[1768687695898,0.00621134,95262.0,95258.0,0.0104978]
[1768687698242,0.00621134,95262.0,95258.0,0.06298677]
[1768687698408,0.00621134,95262.0,95259.0,0.01049769]
[1768687699479,0.01049725,95263.0,95259.0,0.01049769]
[1768687699755,0.01049725,95263.0,95259.0,0.06298615]
[1768687699911,0.01049725,95263.0,95259.0,0.01049769]
[1768687700280,0.06298386,95263.0,95259.0,0.01049769]
[1768687700687,0.01049725,95263.0,95259.0,0.01049769]
[1768687702004,0.06298358,95263.0,95259.0,0.01049769]
[1768687702419,0.01049725,95263.0,95259.0,0.01049769]
[1768687702594,0.06298356,95263.0,95259.0,0.01049769]
[1768687702791,0.01049725,95263.0,95259.0,0.01049769]
[1768687707697,0.06298358,95263.0,95259.0,0.01049769]
[1768687709547,0.01049736,95262.0,95259.0,0.01049769]
[1768687709772,0.06298358,95263.0,95259.0,0.01049769]
[1768687711285,0.01049736,95262.0,95259.0,0.01049769]
[1768687716160,0.06298423,95262.0,95258.0,0.0104978]
[1768687716328,0.01049747,95261.0,95258.0,0.0104978]
[1768687717770,0.04959921,95262.0,95258.0,0.0104978]
[1768687718194,0.01049747,95261.0,95258.0,0.0104978]
[1768687725129,0.01049747,95261.0,95257.0,0.02099516]
[1768687725872,0.01049747,95261.0,95257.0,0.01049791]
[1768687727689,0.04671159,95262.0,95257.0,0.01049791]
[1768687728265,0.01049747,95261.0,95257.0,0.01049791]
[1768687735913,0.01049736,95262.0,95258.0,0.0104978]
[1768687736314,0.01049747,95261.0,95258.0,0.0104978]
[1768687737588,0.01049747,95261.0,95257.0,0.01049791]
[1768687741811,0.06298431,95262.0,95257.0,0.01049791]
[1768687742230,0.06298494,95261.0,95257.0,0.01049791]
[1768687742482,0.01049758,95260.0,95256.0,0.14823538]
[1768687742912,0.01049758,95260.0,95256.0,0.20072544]
[1768687743930,0.01049758,95260.0,95256.0,0.19022808]
[1768687744253,0.01049747,95261.0,95257.0,0.01049791]
[1768687745592,0.01049736,95262.0,95258.0,0.0104978]
[1768687746002,0.01049747,95261.0,95257.0,0.01049791]
[1768687746203,0.01049758,95260.0,95257.0,0.01049791]
[1768687749082,0.01049747,95261.0,95257.0,0.01049791]
[1768687754406,0.01049747,95261.0,95258.0,0.0104978]
[1768687754605,0.01049758,95260.0,95256.0,0.13773802]
[1768687755875,0.01049758,95260.0,95257.0,0.01049791]
[1768687757321,0.01049747,95261.0,95257.0,0.01049791]
[1768687758735,0.06298484,95261.0,95257.0,0.01049791]
[1768687758974,0.01049769,95259.0,95252.0,0.01049846]
[1768687759179,0.01049736,95262.0,95243.0,0.0524972]
[1768687759180,0.09055466,95252.0,95243.0,0.0524972]
[1768687759384,0.14309707,95252.0,95246.0,0.05249558]
[1768687759904,0.10110273,95252.0,95248.0,0.0106565]
[1768687760100,0.01054807,95252.0,95248.0,0.06315094]
[1768687760300,0.01054807,95252.0,95248.0,0.0106565]
[1768687760506,0.01049857,95251.0,95248.0,0.0106565]
[1768687761961,0.01054807,95252.0,95248.0,0.06315094]
[1768687762359,0.01054807,95252.0,95248.0,0.0106565]
[1768687762496,0.01049857,95251.0,95248.0,0.0106565]
[1768687762697,0.01054807,95252.0,95248.0,0.0106565]
[1768687762925,0.01049857,95251.0,95248.0,0.0001576]
[1768687765127,0.01049857,95251.0,95248.0,0.0106565]
[1768687770725,0.01054807,95252.0,95248.0,0.0106565]
[1768687771937,0.01054807,95252.0,95249.0,0.01049879]
[1768687772756,0.0630406,95252.0,95248.0,0.0106565]
[1768687772958,0.01049857,95251.0,95248.0,0.0106565]
[1768687773390,0.06299157,95251.0,95248.0,0.0001576]
[1768687773557,0.01049857,95251.0,95248.0,0.0001576]
[1768687774929,0.01049857,95251.0,95248.0,0.0106565]
[1768687776765,0.01054807,95252.0,95248.0,0.0106565]
[1768687776891,4.961e-05,95252.0,95249.0,0.01049879]
[1768687779404,0.12770325,95266.0,95260.0,0.01049758]
[1768687779519,0.12775784,95266.0,95260.0,0.01049758]
[1768687779714,0.12775784,95266.0,95263.0,0.01049725]
[1768687780130,0.12775784,95266.0,95264.0,0.05248557]
[1768687780501,0.13825476,95266.0,95262.0,0.01049736]
[1768687781641,0.01049714,95264.0,95260.0,0.01049758]
[1768687781779,0.01049703,95265.0,95262.0,0.01049736]
[1768687782403,0.01049714,95264.0,95260.0,0.01049758]
[1768687783007,0.06298295,95264.0,95260.0,0.01049758]
[1768687783213,0.01049736,95262.0,95258.0,0.0104978]
[1768687783418,0.01049736,95262.0,95259.0,0.01049769]
[1768687783619,0.01049714,95264.0,95260.0,0.01049758]
[1768687784391,0.13825476,95266.0,95262.0,0.01049736]
[1768687789299,0.01049714,95264.0,95258.0,0.0104978]
[1768687789509,0.01049747,95261.0,95257.0,0.05248957]
[1768687789710,0.01049747,95261.0,95258.0,0.0104978]
[1768687790135,0.01049758,95260.0,95257.0,0.01049791]
[1768687790616,0.01049758,95260.0,95256.0,0.01049802]
[1768687790812,0.01049747,95261.0,95257.0,0.06298745]
[1768687792521,0.09585225,95260.0,95252.0,0.01049846]
[1768687792718,0.09585258,95257.0,95254.0,0.01049824]
[1768687793143,0.01049791,95257.0,95254.0,0.01049824]
[1768687793358,0.0104978,95258.0,95254.0,0.01049824]
[1768687796363,0.01049758,95260.0,95255.0,0.01049813]
[1768687796569,0.01049758,95260.0,95257.0,0.01049791]
[1768687796777,0.01049758,95260.0,95256.0,0.01049802]
[1768687799328,0.01049747,95261.0,95257.0,0.01049791]
[1768687799552,0.01049747,95261.0,95257.0,0.06298745]
[1768687800413,0.05248921,95258.0,95251.0,0.0524924]
[1768687800569,0.01049791,95257.0,95253.0,0.01049835]
[1768687800760,0.0104978,95258.0,95254.0,0.01049824]
[1768687800961,0.0104978,95258.0,95254.0,0.06294408]
[1768687801269,0.01049813,95255.0,95251.0,0.01049857]
[1768687801483,0.01049791,95257.0,95253.0,0.01049835]
[1768687801823,0.01049791,95257.0,95254.0,0.01049824]
[1768687802600,0.0104978,95258.0,95255.0,0.01049813]
[1768687803842,0.01049758,95260.0,95255.0,0.01049813]
[1768687804067,0.01049758,95260.0,95256.0,0.01049802]
[1768687804327,0.01049758,95260.0,95256.0,0.06298813]
[1768687804634,0.01049758,95260.0,95256.0,0.01049802]
[1768687805180,0.01049758,95260.0,95257.0,0.01049791]
[1768687806750,0.01049758,95260.0,95256.0,0.01049802]
[1768687809697,0.06298551,95260.0,95256.0,0.01049802]
[1768687810126,0.00502865,95260.0,95256.0,0.0629881]
[1768687810312,0.01049747,95261.0,95257.0,0.01049791]
[1768687812427,0.01049736,95262.0,95258.0,0.0104978]
[1768687813753,0.06298425,95262.0,95258.0,0.0104978]
[1768687814295,0.06298425,95262.0,95257.0,0.06298743]
[1768687814296,0.01049758,95260.0,95257.0,0.01049791]
[1768687815766,0.01049769,95259.0,95255.0,0.01049813]
[1768687816761,0.0629862,95259.0,95255.0,0.01049813]
[1768687817512,0.01049769,95259.0,95255.0,0.01049813]
[1768687817963,0.01049758,95260.0,95256.0,0.01049802]
[1768687819592,0.01049758,95260.0,95256.0,0.0629881]
[1768687820614,0.0104978,95258.0,95254.0,0.06298943]
[1768687820857,0.0104978,95258.0,95255.0,0.01049813]
[1768687823523,0.01049769,95259.0,95255.0,0.01049813]
[1768687825743,0.06298729,95258.0,95252.0,0.01049846]
[1768687826120,0.06298729,95258.0,95252.0,0.06299071]
[1768687826680,0.01049791,95257.0,95253.0,0.01049835]
[1768687827802,0.01049791,95257.0,95254.0,0.01049824]
[1768687829723,0.01049791,95257.0,95253.0,0.01049835]
[1768687830270,0.0104978,95258.0,95254.0,0.01049824]
[1768687830483,0.01049791,95257.0,95254.0,0.01049824]
[1768687832846,0.0104978,95258.0,95254.0,0.01049824]
[1768687833057,0.0104978,95258.0,95254.0,0.06298929]
[1768687833615,0.01049769,95259.0,95255.0,0.06298871]
[1768687833817,0.01049769,95259.0,95256.0,0.01049802]
[1768687834747,0.01049758,95260.0,95256.0,0.01049802]
[1768687836522,0.06298688,95258.0,95254.0,0.01049824]
[1768687837103,0.01049791,95257.0,95253.0,0.01049835]
[1768687837979,0.01049802,95256.0,95253.0,0.01049835]
[1768687838184,0.06298762,95257.0,95253.0,0.01049835]
[1768687839275,0.01049802,95256.0,95253.0,0.01049835]
[1768687840861,0.01049791,95257.0,95253.0,0.01049835]
[1768687842183,0.01049791,95257.0,95254.0,0.01049824]
[1768687843216,0.0104978,95258.0,95254.0,0.06298942]
[1768687845398,0.0104978,95258.0,95255.0,0.01049813]
[1768687846380,0.00502855,95259.0,95255.0,0.01049813]
[1768687847692,0.05751703,95259.0,95255.0,0.01049813]
[1768687848062,0.00502855,95259.0,95255.0,0.01049813]
[1768687850477,0.05751709,95259.0,95255.0,0.01049813]
[1768687853830,0.0104978,95258.0,95255.0,0.01049813]
[1768687862103,0.0104978,95258.0,95254.0,0.01049824]
[1768687862782,0.06298691,95258.0,95254.0,0.01049824]
[1768687863505,0.0104978,95258.0,95255.0,0.01049813]
[1768687868915,0.00502855,95259.0,95255.0,0.01049813]
[1768687872734,0.0104978,95258.0,95255.0,0.01049813]
[1768687873643,0.00502855,95259.0,95255.0,0.01049813]
[1768687874360,0.0104978,95258.0,95255.0,0.01049813]
[1768687874606,0.01049747,95261.0,95256.0,0.01049802]
[1768687876386,0.01049758,95260.0,95256.0,0.01049802]
[1768687877569,0.01049769,95259.0,95256.0,0.01049802]
[1768687879056,0.01049758,95260.0,95256.0,0.01049802]
[1768687879903,0.01049747,95261.0,95257.0,0.01049791]
[1768687880304,0.01049758,95260.0,95257.0,0.01049791]
[1768687880833,0.01049769,95259.0,95254.0,0.01049824]
[1768687881639,0.0104978,95258.0,95254.0,0.01031045]
[1768687882321,0.0104978,95258.0,95255.0,0.01049813]
[1768687883892,0.01049769,95259.0,95255.0,0.01049813]
[1768687884093,0.01049769,95259.0,95255.0,0.06298878]
[1768687884511,0.01049758,95260.0,95255.0,0.06298878]
[1768687884512,0.01049758,95260.0,95256.0,0.0629881]
[1768687885372,0.01049758,95260.0,95257.0,0.01049791]
[1768687886132,0.01049758,95260.0,95257.0,0.01012231]
[1768687889954,0.01049769,95259.0,95255.0,0.01049813]
[1768687890542,0.0104978,95258.0,95255.0,0.01049813]
[1768687891709,0.01049791,95257.0,95254.0,0.01031045]
[1768687897099,0.01049802,95256.0,95251.0,0.01049857]
[1768687897980,0.01049802,95256.0,95252.0,0.01049846]
[1768687898815,0.01049802,95256.0,95252.0,0.06299039]
[1768687899228,0.01049791,95257.0,95253.0,0.06299007]
[1768687899366,0.01049791,95257.0,95253.0,0.01049835]
[1768687899970,0.0104978,95258.0,95254.0,0.01049824]
[1768687900169,0.0104978,95258.0,95254.0,0.06298932]
[1768687900381,0.0104978,95258.0,95254.0,0.01049824]
[1768687901252,0.01049802,95256.0,95252.0,0.01049846]
[1768687903823,0.01049813,95255.0,95252.0,0.01049846]
[1768687904004,0.01049802,95256.0,95252.0,0.01049846]
[1768687904855,0.0629882,95256.0,95252.0,0.01049846]
[1768687906211,0.01049802,95256.0,95252.0,0.01049846]
[1768687906853,0.06298826,95256.0,95252.0,0.01049846]
[1768687907063,0.06298826,95256.0,95253.0,0.01049835]
[1768687907064,0.01049802,95256.0,95253.0,0.01049835]
[1768687908504,0.06298728,95258.0,95253.0,0.06299013]
[1768687908864,0.0104978,95258.0,95254.0,0.01049824]
[1768687909270,0.01049769,95259.0,95255.0,0.01049813]
[1768687909899,0.09122087,95260.0,95256.0,0.06298811]
[1768687910099,0.09122087,95260.0,95256.0,0.01049802]
[1768687910322,0.09122087,95260.0,95256.0,0.06298812]
[1768687911301,0.09122087,95260.0,95257.0,0.01049791]
[1768687911443,0.08072329,95260.0,95257.0,0.01049791]
[1768687912686,0.08072329,95260.0,95257.0,0.06298739]
[1768687912886,0.08072329,95260.0,95258.0,0.05248902]
[1768687913668,0.08072329,95260.0,95257.0,0.06298739]
[1768687920613,0.08072329,95260.0,95257.0,0.01049791]
[1768687923700,0.08072329,95260.0,95257.0,0.06298745]
[1768687923861,0.08072329,95260.0,95257.0,0.06294213]
[1768687924365,0.08072329,95260.0,95257.0,0.01045259]
[1768687929774,0.08072329,95260.0,95257.0,0.06294213]
[1768687933279,0.08072329,95260.0,95257.0,0.01045259]
[1768687936954,0.01049769,95259.0,95255.0,0.01049813]
[1768687937091,0.09122087,95260.0,95256.0,0.01049802]
[1768687938131,0.09122087,95260.0,95256.0,0.06298811]
[1768687938279,0.09122087,95260.0,95257.0,0.01049791]
[1768687940286,0.08072329,95260.0,95257.0,0.06298742]
[1768687943419,0.09122087,95260.0,95256.0,0.01049802]
[1768687943633,0.08072329,95260.0,95257.0,0.01049791]
[1768687943777,0.08072329,95260.0,95257.0,0.06298745]
[1768687945168,0.01049736,95262.0,95259.0,0.01049769]
[1768687945529,0.0896547,95262.0,95259.0,0.01049769]
[1768687954459,0.07915734,95262.0,95259.0,0.01049769]
[1768687954664,0.07915734,95262.0,95259.0,0.06298614]
[1768687958202,0.07915734,95262.0,95259.0,0.01049769]
[1768687958407,0.07915734,95262.0,95259.0,0.06298603]
[1768687958924,0.14214189,95262.0,95257.0,0.01049791]
[1768687959141,0.0896547,95262.0,95258.0,0.0104978]
[1768687960126,0.0896547,95262.0,95258.0,0.0629867]
[1768687960333,0.14214164,95262.0,95258.0,0.0104978]
[1768687960496,0.0896547,95262.0,95258.0,0.06298678]